Cogmind - Beta 11 X7 @@@ ROGUE MODE // 2021.08.21 @ 13:28:37 Player: Impossible -4 Result: Self-destructed Performance ------------- Evolutions (6) 3000 Regions Visited (26) 5200 Robots Destroyed (396) 1980 Value Destroyed (16040) 16040 Prototype IDs (68) 1360 Alien Tech Used (0) 0 Bonus (4157) 4157 TOTAL SCORE: 31737 Bonus ------- High Alert Combat Kills 875 Follower Combat Kills 978 Network Hubs Disabled 200 Aligned with FarCom 300 Met Imprinter 300 Exposed GOLEM Chamber 500 Met Warlord at Base 500 MAIN.C Attacked Warlord 500 Warlord Defense Kill 172 Met R17 at Cetus 500 Friendly Fire -668 Cogmind --------- Core Integrity 236/1150 Matter 84/300 Energy 100/100 System Corruption 10% Temperature Cool (0) Movement Core (50) Location -4/Factory Parts ------- > --- POWER (4) -------- (None) > --- PROPULSION (6) --- (None) > --- UTILITY (6) ------ Improved Targeting Computer > --- WEAPON (3) ------- (None) > --- INVENTORY (5) ---- Advanced Heat Sink Layered Heavy Armor Plating Tesla Rifle Coil Gun Peak State ------------ > --- POWER ------------ Assembled Flux Generator Vortex Chain Reactor > --- PROPULSION ------- Flexi-carbon Leg Flexi-carbon Leg Flexi-carbon Leg Flexi-carbon Leg Assembled Alloy Leg Assembled Alloy Leg > --- UTILITY ---------- Assembled Biocell Array Superbattery Advanced Visual Processing Unit Advanced Sensor Array Advanced Signal Interpreter Phasing AFG > --- WEAPON ----------- Assembled Focal Cannon Assembled Focal Cannon Assembled Focal Cannon > --- INVENTORY -------- Railgun Railgun Railgun Railgun [Rating: 149] Favorites ----------- Power Assembled Flux Generator Engine Heavy Ion Engine Power Core Micro Nuclear Core Reactor Assembled Flux Generator Propulsion Assembled Alloy Leg Treads Light Treads Leg Assembled Alloy Leg Wheel Wheel Hover Unit Zionite Glidesys I Flight Unit Flying Fortress v7 Utility Large Storage Unit Device GOLEM Unit Storage Large Storage Unit Processor Target Analyzer Hackware Improved Hacking Suite Protection Centrium Medium Armor Plating Weapon Assembled Focal Cannon Energy Gun Medium Laser Energy Cannon Assembled Focal Cannon Ballistic Gun Enhanced Autogun Ballistic Cannon Magnetic Acceleration Cannon Launcher EMP Blaster Special Weapon Mining Laser Impact Weapon Makeshift Hammer Piercing Weapon Heavy Pick Special Melee Weapon Advanced Datajack Build | -11 -10 -10 -9 -9 -9 -8 -8 -7 -7 -7 -7 -7 -6 -6 -6 -6 -6 -6 -5 -5 -5 -5 -4 -4 -4 -4 ------- Run | Scr Mat Min Mat Min Exi Min Mat Fac Low Low Zio Dee Pro Fac Ext Cet Arc Hub Fac Upp Upp War Pro Fac Was Fac Slots Evolved 12 | . . . 2 . . . 2 2 . . . . . 2 . . . . 2 . . . . 2 . . Power 3 | . . . . . . . . 1 . . . . . . . . . . 1 . . . . 1 . . Propulsion 4 | . . . 1 . . . 1 . . . . . . . . . . . 1 . . . . 1 . . Utility 4 | . . . 1 . . . 1 . . . . . . 2 . . . . . . . . . . . . Weapon 1 | . . . . . . . . 1 . . . . . . . . . . . . . . . . . . Parts Attached 495 | 9 9 18 56 4 1 2 25 13 24 10 24 37 3 15 7 30 15 5 42 . 8 19 9 43 . 67 Power 48 | 1 1 4 6 . . . 1 6 2 . 3 1 . . . 4 . . 3 . 1 1 2 3 . 9 Engine 26 | 1 1 4 6 . . . . 2 . . 2 . . . . . . . . . 1 . 1 . . 8 Core 14 | . . . . . . . 1 4 2 . 1 1 . . . . . . 2 . . . . 2 . 1 Reactor 8 | . . . . . . . . . . . . . . . . 4 . . 1 . . 1 1 1 . . Propulsion 123 | 4 3 6 19 3 . . 14 1 . 1 1 5 . 4 . 4 . . 13 . 2 8 1 12 . 22 Treads 60 | 2 2 . 12 3 . . 13 . . . . . . 1 . 4 . . 8 . . 7 . 4 . 4 Leg 42 | 2 1 6 7 . . . . . . . . 4 . 3 . . . . 4 . 2 1 . 5 . 7 Wheel 12 | . . . . . . . . . . . . . . . . . . . . . . . 1 3 . 8 Hover 2 | . . . . . . . . . . . . 1 . . . . . . 1 . . . . . . . Flight 7 | . . . . . . . 1 1 . 1 1 . . . . . . . . . . . . . . 3 Utility 199 | 2 3 1 16 . 1 . 8 3 9 2 12 16 2 10 7 10 8 5 22 . 4 7 6 25 . 20 Device 99 | 1 2 1 8 . . . 2 1 2 1 3 7 2 6 3 5 4 . 14 . 1 5 4 14 . 13 Storage 25 | . . . 3 . . . . . 3 . 1 2 . . 2 2 . . . . 1 . 2 4 . 5 Processor 15 | 1 1 . 1 . . . . . 1 . 5 . . . . . . . 1 . . 2 . 2 . 1 Hackware 15 | . . . 1 . . . 2 1 . . 1 . . 2 1 . 1 3 3 . . . . . . . Protection 45 | . . . 3 . 1 . 4 1 3 1 2 7 . 2 1 3 3 2 4 . 2 . . 5 . 1 Artifact . | . . . . . . . . . . . . . . . . . . . . . . . . . . . Weapon 125 | 2 2 7 15 1 . 2 2 3 13 7 8 15 1 1 . 12 7 . 4 . 1 3 . 3 . 16 Energy Gun 22 | 2 2 4 8 . . . . . . . . . . . . . . . . . . 2 . . . 4 Energy Cannon 5 | . . . . . . . . . . . . 4 . . . . . . . . . 1 . . . . Ballistic Gun 62 | . . . 6 . . 2 2 2 5 3 6 2 . . . 12 6 . 4 . . . . 3 . 9 Ballistic Cannon 1 | . . . . . . . . . . . . . . . . . . . . . 1 . . . . . Launcher 25 | . . . 1 . . . . . 8 4 1 9 1 1 . . . . . . . . . . . . Special Weapon 4 | . . 3 . 1 . . . . . . . . . . . . . . . . . . . . . . Impact Weapon 1 | . . . . . . . . . . . 1 . . . . . . . . . . . . . . . Slashing Weapon . | . . . . . . . . . . . . . . . . . . . . . . . . . . . Piercing Weapon 3 | . . . . . . . . . . . . . . . . . . . . . . . . . . 3 Special Melee Weapon 2 | . . . . . . . . 1 . . . . . . . . 1 . . . . . . . . . Unidentified Prototypes 30 | . . . 1 . . . 1 1 . . 7 7 . . . 3 . . . . . 8 . 1 . 1 Corrupted Parts 15 | . . 3 2 . . . . . 1 . . 1 1 . . . . . 1 . . 5 . . . 1 System Corruption 89 | . . 10 6 . . . . . 2 . . 7 9 . . . . . 5 . . 43 . . . 7 Parts Lost 105 | . . 4 12 . . . 2 . . . 3 3 1 2 1 11 . 1 2 . 9 1 3 5 2 43 Power 21 | . . . 1 . . . . . . . 1 1 . . . 3 . . . . 2 1 1 1 . 10 Propulsion 34 | . . . 4 . . . 2 . . . . 2 1 . . . . . 1 . 2 . 1 3 . 18 Utility 25 | . . . 3 . . . . . . . 1 . . 2 1 5 . 1 1 . 3 . . . . 8 Weapon 25 | . . 4 4 . . . . . . . 1 . . . . 3 . . . . 2 . 1 1 2 7 Highest Loss Streak 26 | . . 2 8 . . . 1 . . . 1 1 1 2 1 8 . 1 1 . 6 1 2 2 1 26 Average Slot Usage (%) 83 | . 100 84 97 95 83 100 96 75 73 75 74 74 79 78 81 79 85 85 82 88 82 82 78 85 74 84 Engine 3 | . 14 8 10 11 11 11 7 1 . . 5 . . . . . . . . . 2 5 . . . 9 Core 2 | . . . . . . . 1 12 14 15 8 1 . . . . . . 6 5 1 . . 5 10 8 Reactor 4 | . . . . . . . . . . . . 4 6 6 6 8 13 13 5 5 5 5 8 6 5 . Treads 9 | . 5 25 24 32 33 33 34 . . . . . . . . 8 13 13 13 . . 2 14 4 15 9 Leg 12 | . 22 2 8 . . . . . . . . 17 26 23 25 9 . . 5 29 24 22 7 22 . 3 Device 10 | . 20 22 11 . . . 2 2 4 7 7 9 7 11 9 16 15 4 11 17 12 12 16 9 15 14 Storage 9 | . . . 7 11 11 11 9 7 8 7 8 8 14 13 16 9 6 6 8 11 9 8 7 9 5 8 Processor 2 | . 7 5 5 11 11 11 6 . . . . 1 . . . . . . . . . . . 6 . 2 Hackware 1 | . . . . . . . 1 17 . . . . . 4 . . 1 18 4 . . . . . . . Protection 5 | . . . 6 11 11 11 14 1 12 14 11 3 . 1 2 8 14 9 3 . 3 5 3 2 . . Energy Gun 1 | . 28 10 4 . . . . . . . . . . . . . . . . . . 1 . . . 2 Energy Cannon 8 | . . . . . . . . . . . . 12 22 15 18 3 . . 7 17 16 13 15 8 . . Ballistic Gun 6 | . . . 17 14 . 22 18 23 7 1 3 5 . . . 13 19 20 9 . . . . 6 6 6 Launcher 1 | . . . . . . . . . 15 21 18 3 . . . . . . . . . . . . . . Naked Turns . | . . . . . . . . . . . . . . . . . . . . . . . . . . . Heaviest Build 147 | 8 11 11 42 42 37 42 55 47 52 49 50 126 107 113 122 114 101 98 129 123 128 116 112 147 127 117 Greatest Support 180 | 40 40 40 63 63 63 63 83 50 50 50 50 104 104 104 100 160 160 160 180 110 110 137 136 140 30 81 Greatest Overweight (x) 37 | . . 1 1 . . . . . 1 15 16 34 1 1 37 1 31 . 4 1 1 1 31 6 4 4 Average Overweight (x) . | . . . . . . . . . . . . . . . . . 2 . . 1 . . 1 . 3 1 Largest Inventory Capacity 20 | 5 5 5 15 15 15 15 15 15 15 15 15 15 15 15 15 15 15 15 15 15 15 5 5 20 20 20 Average Capacity 12 | 5 5 5 10 15 15 15 15 15 15 15 15 12 15 15 15 15 15 15 15 15 10 5 5 9 20 19 Most Carried 20 | 5 5 5 15 15 15 14 15 15 15 15 15 15 15 15 15 15 15 15 15 15 15 5 5 17 12 20 Average Carried 11 | 1 4 3 8 14 14 13 14 14 14 14 14 11 14 14 14 12 14 14 13 13 9 4 4 6 12 14 Final Capacity 20 | 5 5 5 15 15 15 15 15 15 15 15 15 15 15 15 15 15 15 15 15 15 5 5 5 20 20 5 Final Carried 15 | 5 5 5 14 15 15 13 15 14 14 15 14 15 13 15 13 15 15 13 11 15 5 5 5 12 12 5 Class Distribution -------------------- 21% | Golem 20% | Mutant 14% | Scavenger-Mutant 9% | Scavenger-Tank 9% | Generator-Golem 7% | Scavenger-Golem 5% | Tank Dominant Class ---------------- Mutant | -10/Materials Scavenger-Mutant | -10/Mines Scavenger-Mutant | -9/Materials Mutant | -9/Mines Mutant | -9/Exiles Mutant | -8/Mines Scavenger-Mutant | -8/Materials Hacker-Gunner | -7/Factory Tank | -7/Lower Caves Tank | -7/Lower Caves Tank | -7/Zion Golem | -7/Deep Caves Golem | -6/Proximity Caves Golem | -6/Factory Golem | -6/Extension Scavenger-Tank | -6/Cetus Scavenger-Tank | -6/Archives Scavenger-Tank | -6/Hub_04(d) Scavenger-Tank | -5/Factory Generator-Golem | -5/Upper Caves Generator-Golem | -5/Upper Caves Scavenger-Golem | -5/Warlord Scavenger-Golem | -4/Proximity Caves Scavenger-Skirmisher | -4/Factory Scavenger-Mutant | -4/Waste Scavenger-Mutant | -4/Factory Resources | -11 -10 -10 -9 -9 -9 -8 -8 -7 -7 -7 -7 -7 -6 -6 -6 -6 -6 -6 -5 -5 -5 -5 -4 -4 -4 -4 ----------- Run | Scr Mat Min Mat Min Exi Min Mat Fac Low Low Zio Dee Pro Fac Ext Cet Arc Hub Fac Upp Upp War Pro Fac Was Fac Matter Collected 10787 | 290 . 188 1307 159 50 20 971 52 480 152 817 909 130 223 102 615 557 154 1067 41 211 213 304 733 . 1042 Remotely 145 | . . 50 95 . . . . . . . . . . . . . . . . . . . . . . . Salvage Created 19322 | 158 155 141 2021 126 . 38 1320 52 418 117 914 1744 727 826 843 1007 599 544 1527 327 1171 59 1470 1267 . 1751 Parts 957 | 7 7 12 137 8 . 5 78 2 16 5 55 61 22 40 33 57 32 28 73 10 49 . 56 70 . 94 Haulers Intercepted 13 | . . . 5 . . . 4 1 . . . . . 2 . . . . 1 . . . . . . . Recyclers Shooed 16 | . . . 3 1 . . 4 . . . . . . 1 . . . 1 1 . . . . . . 5 Parts Field Recycled . | . . . . . . . . . . . . . . . . . . . . . . . . . . . Retrieved Matter . | . . . . . . . . . . . . . . . . . . . . . . . . . . . Parts Self-Destructed 177 | . . . . . . . . . 3 1 . . 21 . . . . . . 8 53 41 50 . . . Prevented 22 | . . . . . . . . . 13 6 . . . . . . . . . . . 3 . . . . Kills | -11 -10 -10 -9 -9 -9 -8 -8 -7 -7 -7 -7 -7 -6 -6 -6 -6 -6 -6 -5 -5 -5 -5 -4 -4 -4 -4 ------- Run | Scr Mat Min Mat Min Exi Min Mat Fac Low Low Zio Dee Pro Fac Ext Cet Arc Hub Fac Upp Upp War Pro Fac Was Fac Combat Hostiles Destroyed 279 | . 3 6 28 3 . 3 23 . 8 2 7 17 13 9 14 21 4 8 24 5 21 1 18 19 . 22 Melee 6 | . . 3 . . . . . . . . . . . . . . . . . . . . . . . 3 Guns 125 | . 2 3 23 3 . 3 23 . 1 1 2 . . . . 16 4 8 11 . . . 1 6 . 18 Cannons 108 | . . . . . . . . . . . . 3 10 6 14 5 . . 13 5 21 1 17 13 . . AOE 15 | . . . 3 . . . . . 3 . 1 2 3 3 . . . . . . . . . . . . Classes Destroyed 28 | 2 2 2 6 . . . 3 . 1 . 3 2 2 1 . . . . 1 . 1 . 1 1 . . Worker 34 | . . . 12 1 . . 3 . . . . . . 1 . . . 3 1 . . . . 5 . 8 Builder 16 | . . . 7 . . . 1 . . . . . . . . . . . . . . . . 3 . 5 Tunneler 4 | 3 . . . . . . 1 . . . . . . . . . . . . . . . . . . . Hauler 13 | . . . 5 . . . 4 1 . . . . . 2 . . . . 1 . . . . . . . Recycler 9 | 1 . . 4 . . . 2 . . . . . . 1 . . . . . . . . . . . 1 Minesweeper 1 | . . . . . . . . . . . . . . . . . . . . . . . 1 . . . Mechanic 1 | . . . . . . . . . . . . . . . . . . . . . 1 . . . . . Operator 16 | . . . 2 . . . . . . . . . . 1 1 . 8 1 2 . . . . 1 . . Watcher 12 | . 1 . 5 . . . . . . . . . . 2 . 1 . . 1 . . . . 2 . . Swarmer 40 | . . 3 6 . . 3 3 . 1 . . . . 1 1 6 . . . 1 6 . 1 5 . 3 Saboteur 1 | . . . . . . . . . . . . . . . . . . . . . . . . 1 . . Grunt 104 | . 3 2 14 3 . . 8 . 3 2 . . 11 3 5 7 . 4 11 1 11 . 3 7 . 6 Brawler 8 | . . . . . . . . . . . . . 1 1 . 1 . . 1 . 1 . 2 1 . . Duelist 10 | . . . 2 . . . . . 3 . . . . . 1 . . . 2 . 2 . . . . . Protector 2 | . . . . . . . . . . . . . . . . . . . 1 . . . 1 . . . Sentry 35 | . . . 6 . . . 8 . . . . . . 1 4 . 4 3 . 1 1 . 1 2 . 4 Specialist 4 | . . . . . . . 2 . . . . . . . . . . . . . . . . . . 2 Hunter 15 | . . . . . . . 1 . . . . . . . 2 . . . . 1 . . 8 . . 3 Programmer 21 | . . . . . . . . . . . . . . 3 . . . 1 9 . . . 2 2 . 4 Heavy 2 | . . . . . . . 1 . . . . . . . . . . . . . . . . 1 . . Behemoth 4 | . . . . . . . . . . . . . 1 . 1 . . . . . . 1 1 . . . Cetus Guard 7 | . . . . . . . . . . . . . . . . 7 . . . . . . . . . . Zionite 17 | . . . . . . . . . . . 17 . . . . . . . . . . . . . . . Z-Technician 5 | . . . . . . . . . . . . 5 . . . . . . . . . . . . . . Z-Light 9 | . . . . . . . . . . . . 9 . . . . . . . . . . . . . . Decomposer 1 | . . . . . . . . . . . . . . . . . . . . 1 . . . . . . Tinkerer 2 | . . . . . . . . . . . 2 . . . . . . . . . . . . . . . Master Thief 2 | . . . . . . . . . 1 1 . . . . . . . . . . . . . . . . Assembled 1 | . . 1 . . . . . . . . . . . . . . . . . . . . . . . . Golem 8 | . . . . . . . . . . . . 8 . . . . . . . . . . . . . . Butcher 1 | . . . . . . . . . . . 1 . . . . . . . . . . . . . . . Mutant 6 | . . . . . . . . . . . 5 . . . . . . . . 1 . . . . . . Best Kill Streak 9 | 1 2 3 8 3 . 3 4 1 5 1 7 6 4 4 3 9 6 6 5 3 8 1 5 6 . 9 Combat Bots Only 9 | . 2 3 4 3 . 3 3 . 5 1 4 6 4 3 3 9 1 4 5 3 8 1 5 5 . 5 Max Kills in Single Turn 3 | 1 1 1 2 2 . 1 2 1 1 1 2 2 2 3 1 2 1 2 1 2 2 1 1 2 . 3 Gunslinging 1 | . . . . . . . . . . . . . . . . 1 . . . . . . . . . 1 Exploded 3 | . . . 1 . . . . . 1 . 1 1 2 3 . . . . . . . . . . . . Melee 1 | . . 1 . . . . . . . . . . . . . . . . . . . . . . . 1 Uniques/NPCs Destroyed 1 | . . . . . . . . . . . 1 . . . . . . . . . . . . . . . Imprinter (-7/Zion) Combat | -11 -10 -10 -9 -9 -9 -8 -8 -7 -7 -7 -7 -7 -6 -6 -6 -6 -6 -6 -5 -5 -5 -5 -4 -4 -4 -4 -------- Run | Scr Mat Min Mat Min Exi Min Mat Fac Low Low Zio Dee Pro Fac Ext Cet Arc Hub Fac Upp Upp War Pro Fac Was Fac Damage Taken 28963 | . 134 540 1602 107 . 41 1637 . 113 130 518 1373 903 946 961 4086 366 709 1658 127 1944 805 2973 1882 68 5340 Core 2966 | . . 90 198 . . . 119 . . . 183 142 132 139 40 459 . 40 130 12 225 17 126 125 68 721 Absorbed by Shields 1637 | . . . . . . . . . . . . . . . 62 . . . 377 46 67 279 . 144 . 662 Reduced by Siege Mode 347 | . . . . . . . . . . . . . . . . 199 38 35 75 . . . . . . . Core Remaining (%) 56 | 100 . 64 . . . 50 78 . . . . . 34 . . . . 20 . . . . 49 . . . Volleys Fired 1051 | 13 11 16 157 10 . 3 107 2 13 8 53 101 23 45 31 46 25 21 77 8 44 4 76 69 . 88 Largest 3 | 2 2 2 2 2 . 2 2 3 3 3 3 3 3 3 3 3 3 3 3 3 3 3 3 3 . 3 Hottest 161 | 100 100 100 105 50 . 50 50 75 99 99 99 99 93 75 75 105 105 103 103 75 103 130 130 105 . 161 Shots Fired 2385 | 26 22 22 287 21 . 6 214 6 36 23 159 132 62 96 88 135 75 55 200 22 117 12 186 191 . 192 Gun 1344 | 26 22 20 285 21 . 6 214 6 9 9 63 32 . . . 92 75 55 123 . . 4 23 67 . 192 Cannon 857 | . . . . . . . . . . . . 62 58 95 88 43 . . 77 22 117 8 163 124 . . Launcher 182 | . . . 2 . . . . . 27 14 96 38 4 1 . . . . . . . . . . . . Special 2 | . . 2 . . . . . . . . . . . . . . . . . . . . . . . . Kinetic 1151 | . . . 195 21 . 6 214 6 9 9 63 32 . . . 92 75 55 123 . 16 . . 67 . 168 Thermal 899 | 26 22 2 39 . . . . . . . . 25 58 95 88 43 . . 77 22 101 6 159 124 . 12 Explosive 7 | . . . 2 . . . . . . . . . 4 1 . . . . . . . . . . . . Electromagnetic 295 | . . 20 51 . . . . . 27 14 96 75 . . . . . . . . . . . . . 12 Entropic 33 | . . . . . . . . . . . . . . . . . . . . . . 6 27 . . . Robot Hit Streak 39 | 5 14 6 12 4 . 4 13 2 5 4 9 21 39 13 16 33 29 18 33 4 13 5 19 12 . 12 Robot Miss Streak 14 | 4 2 2 6 7 . 2 6 2 2 2 14 3 1 3 5 5 1 2 6 2 3 2 3 4 . 3 Penetration Max 2 | . . . . . . . . . . . . . . . . 1 1 1 1 . . . . 1 . 2 Secondary Targets 15 | . 1 2 . . . . . . . . 2 . . . . 6 . 1 1 . . . . 1 . 1 Max Gunslinging Chain 1 | . 1 1 . . . . . . . . 1 . . . . 1 . 1 1 . . . . 1 . 1 Shots Hit Robots 1412 | 15 18 15 178 15 . 3 137 4 17 7 60 73 40 47 49 108 52 30 140 11 63 5 126 91 . 108 Core Hits 774 | 5 8 7 86 6 . 3 54 1 25 10 59 56 26 20 21 75 27 19 69 8 31 3 38 50 . 67 Critical Kills 22 | . . . 2 . . . 2 . . . . . . . . 2 5 2 4 . . . . . . 5 Critical Parts Destroyed 41 | . . . 4 2 . . 3 . . . . 1 . . . 4 11 5 5 . . . . 1 . 5 Critical Strikes 74 | 1 1 . 9 2 . . 6 . . . . 1 . . . 7 16 7 9 . . . . 1 . 14 Burn 4 | 1 1 . 1 . . . . . . . . . . . . . . . . . . . . . . 1 Destroy 66 | . . . 6 2 . . 6 . . . . 1 . . . 7 16 7 9 . . . . 1 . 11 Corrupt 2 | . . . 2 . . . . . . . . . . . . . . . . . . . . . . . Puncture 2 | . . . . . . . . . . . . . . . . . . . . . . . . . . 2 Melee Attacks 38 | . . . . . . . . 1 . . 18 . . . . . 1 . . . . . . . . 18 Impact 18 | . . . . . . . . . . . 18 . . . . . . . . . . . . . . . Slashing . | . . . . . . . . . . . . . . . . . . . . . . . . . . . Piercing 18 | . . . . . . . . . . . . . . . . . . . . . . . . . . 18 Sneak Attacks 3 | . . . . . . . . 1 . . . . . . . . 1 . . . . . . . . 1 Combat Hostiles . | . . . . . . . . . . . . . . . . . . . . . . . . . . . Follow-up Attacks 4 | . . . . . . . . . . . . . . . . . . . . . . . . . . 4 Damage Inflicted 49711 | 185 242 205 3031 225 . 34 2459 51 967 665 1829 2549 2334 2713 2523 3583 1738 1232 5197 618 2942 331 6115 4234 . 3709 Guns 19526 | 185 222 176 2611 220 . 34 2362 51 84 40 550 399 . . . 1857 1738 1204 2580 . . 94 789 1130 . 3200 Cannons 23914 | . . . . . . . . . . . . 1358 1833 2352 2410 1718 . . 2484 618 2942 237 5326 2636 . . Explosions 5437 | . . . 341 . . . . . 883 625 1279 792 501 361 87 . . . 100 . . . . 468 . . Melee 509 | . . . . . . . . . . . . . . . . . . . . . . . . . . 509 Ramming 325 | . 20 29 79 5 . . 97 . . . . . . . 26 8 . 28 33 . . . . . . . Kinetic 17052 | . . . 1668 220 . 34 2362 51 84 40 550 399 . . . 1857 1738 1204 2580 . 249 . . 1130 . 2886 Thermal 23963 | 185 222 . 522 . . . . . 62 . . 672 1833 2425 2497 1718 . . 2484 618 2693 90 5108 2636 . 198 Explosive 1571 | . . . 214 . . . . . . . . . 501 288 . . . . 100 . . . . 468 . . Electromagnetic 5043 | . . 176 548 . . . . . 821 625 1279 1478 . . . . . . . . . . . . . 116 Impact . | . . . . . . . . . . . . . . . . . . . . . . . . . . . Slashing . | . . . . . . . . . . . . . . . . . . . . . . . . . . . Piercing 509 | . . . . . . . . . . . . . . . . . . . . . . . . . . 509 Entropic 1248 | . . . . . . . . . . . . . . . . . . . . . . 241 1007 . . . Highest Corruption 48 | . . 10 6 6 6 6 . 1 3 3 3 8 17 7 7 10 10 2 11 11 11 43 48 2 2 10 Average Corruption 10 | . . 6 5 6 6 6 . 1 1 3 1 6 8 7 2 8 7 2 7 11 11 29 47 1 2 4 Corruption Purged 29 | . . . . . . . . . . . . . . . 5 . 10 . 4 . . . . . . 10 Effects 662 | . . 1 52 26 10 5 . . 3 6 1 115 66 20 28 16 16 1 44 35 40 13 134 9 . 21 Message Errors 160 | . . . 11 4 3 1 . . 1 4 . 34 20 3 11 3 4 . 8 8 9 . 27 5 . 4 Matter Fused 145 | . . . 12 8 3 2 . . 1 1 . 27 12 4 3 3 2 . 9 5 13 4 31 . . 5 Heat Flow Errors 89 | . . 1 8 4 1 1 . . . 1 . 10 12 1 6 1 7 . 8 5 6 . 14 1 . 2 Energy Discharges 73 | . . . 2 2 . 1 . . . . . 16 11 4 2 2 1 . 4 8 2 1 13 2 . 2 Parts Rejected 8 | . . . 2 . . . . . . . . . . . . . 1 . 2 . . 1 1 . . 1 Data Loss (minor) 87 | . . . 10 4 3 . . . 1 . 1 19 7 5 4 . . 1 3 4 3 2 17 1 . 2 Data Loss (major) 34 | . . . 2 3 . . . . . . . 5 3 1 . 2 1 . 5 2 2 . 7 . . 1 Misfires 18 | . . . 2 1 . . . . . . . 2 1 1 2 1 . . 2 . 2 . 4 . . . Alerts 8 | . . . . . . . . . . . . . . . . 1 . . 2 1 . . 4 . . . Misdirections 7 | . . . . . . . . . . . . . . . . 1 . . . . . 5 . . . 1 Weapon Failures 33 | . . . 3 . . . . . . . . 2 . 1 . 2 . . 1 2 3 . 16 . . 3 Overload Shots . | . . . . . . . . . . . . . . . . . . . . . . . . . . . Overflow Damage 1682 | . . . 39 . . . . . . 29 . 186 74 282 108 76 . . 83 20 68 21 497 168 . 31 Projectiles 1420 | . . . . . . . . . . . . 28 74 279 108 76 . . 83 20 68 21 497 166 . . Explosions 231 | . . . 39 . . . . . . 29 . 158 . 3 . . . . . . . . . 2 . . Melee 31 | . . . . . . . . . . . . . . . . . . . . . . . . . . 31 Knockbacks 5 | . 1 . . . . . 2 . . . . . . . . . . . . . 2 . . . . . Impact 3 | . 1 . . . . . 2 . . . . . . . . . . . . . . . . . . . Kinetic 2 | . . . . . . . . . . . . . . . . . . . . . 2 . . . . . Secondary . | . . . . . . . . . . . . . . . . . . . . . . . . . . . Self-Inflicted Damage 515 | . . . 40 . . . . . 16 . 15 410 34 . . . . . . . . . . . . . Shots 7 | . . . 1 . . . . . 2 . 2 1 1 . . . . . . . . . . . . . Rammed 42 | . . 16 8 1 . . 9 . . . . . . . . 1 . 6 1 . . . . . . . Targets Rammed 69 | . 5 21 15 1 . . 14 . . . . . . . 2 2 . 6 2 . . . . 1 . . Kicked 17 | . 5 2 6 . . . . . . . . . . . 2 1 . . . . . . . 1 . . Crushed 10 | . . 3 1 . . . 5 . . . . . . . . . . . 1 . . . . . . . Highest Temperature 396 | 216 90 92 226 211 258 132 302 62 242 201 240 257 280 204 263 106 232 249 238 271 203 191 278 396 . 309 Average Temperature 70 | 84 36 31 56 68 136 71 60 28 104 55 30 59 72 125 62 43 103 65 67 93 45 79 119 108 . 92 Received Heat Transfer 4907 | . 72 81 594 51 . . 396 . 18 45 . 282 354 180 231 615 45 135 255 6 435 179 217 302 . 414 Effects 10 | . . . . . . . . . 1 . . . . . . . . 3 2 . . . . 4 . . Shutdowns 1 | . . . . . . . . . . . . . . . . . . . . . . . . 1 . . Energy Bleed 4 | . . . . . . . . . . . . . . . . . . . 2 . . . . 2 . . Interference 5 | . . . . . . . . . 1 . . . . . . . . 3 . . . . . 1 . . Siege Activations 19 | . . . . . . . . . . . . . . . . 2 5 2 10 . . . . . . . Total Turns 532 | . . . . . . . . . . . . . . . . 61 141 39 291 . . . . . . . Longest Duration 110 | . . . . . . . . . . . . . . . . 55 38 23 110 . . . . . . . Robots Corrupted 25 | . . . 2 . . . . . 4 1 5 12 . . . . . . . . . . . . . 1 Combat Hostiles 24 | . . . 2 . . . . . 4 1 4 12 . . . . . . . . . . . . . 1 Parts Fried 52 | . . 1 4 . . . . . 11 . 14 19 . . 1 . . . . . . . . . . 2 Impact Corruptions . | . . . . . . . . . . . . . . . . . . . . . . . . . . . Robots Melted 1 | . 1 . . . . . . . . . . . . . . . . . . . . . . . . . Combat Hostiles 1 | . 1 . . . . . . . . . . . . . . . . . . . . . . . . . Parts Melted 15 | . 5 . . . . . . . . . . . 1 1 . . . . 1 . 1 . 4 2 . . Heat Transferred 15286 | 629 740 . 1177 . . . . . 100 . . 450 1000 1275 1400 850 . . 1042 325 1550 50 2800 1400 . 498 Parts Sabotaged . | . . . . . . . . . . . . . . . . . . . . . . . . . . . Parts Stolen 3 | . . . . . . . . . 1 2 . . . . . . . . . . . . . . . . Parts Stripped . | . . . . . . . . . . . . . . . . . . . . . . . . . . . Power Chain Reactions 13 | . . . 2 . . . . . 1 . 3 7 . . . . . . . . . . . . . . Missiles Intercepted . | . . . . . . . . . . . . . . . . . . . . . . . . . . . Alert | -11 -10 -10 -9 -9 -9 -8 -8 -7 -7 -7 -7 -7 -6 -6 -6 -6 -6 -6 -5 -5 -5 -5 -4 -4 -4 -4 ------- Run | Scr Mat Min Mat Min Exi Min Mat Fac Low Low Zio Dee Pro Fac Ext Cet Arc Hub Fac Upp Upp War Pro Fac Was Fac Peak Influence 1031 | 20 135 60 466 219 . 85 306 108 . . . . . 306 242 385 308 325 1031 . . . . 807 293 632 Initial 278 | . 13 . 19 129 . . 33 . . . . . . . 115 68 113 . 104 . . . . 6 278 191 Average 223 | 11 85 27 274 108 . 37 120 63 . . . . . 126 127 235 166 101 504 . . . . 474 280 300 Maximum Alert Level 3 | . . . 2 1 . . 1 . . . . . . 1 1 1 1 1 3 . . . . 3 1 2 Low Security (%) 60 | 100 100 100 23 70 . 100 82 100 . . . . . 80 88 25 69 84 34 . . . . 28 . 23 Level 1 23 | . . . 60 29 . . 17 . . . . . . 19 11 74 30 15 6 . . . . 5 100 58 Level 2 9 | . . . 15 . . . . . . . . . . . . . . . 19 . . . . 50 . 18 Level 3 6 | . . . . . . . . . . . . . . . . . . . 38 . . . . 15 . . Level 4 . | . . . . . . . . . . . . . . . . . . . . . . . . . . . Level 5 . | . . . . . . . . . . . . . . . . . . . . . . . . . . . High Security . | . . . . . . . . . . . . . . . . . . . . . . . . . . . Max Security . | . . . . . . . . . . . . . . . . . . . . . . . . . . . Squads Dispatched 58 | . . . 7 . . . 8 1 . . . . . 3 2 . . 6 9 . 1 . . 9 . 12 Investigation 12 | . . . 4 . . . 1 1 . . . . . 1 . . . 3 . . . . . 1 . 1 Extermination 10 | . . . . . . . . . . . . . . 1 . . . 1 4 . . . . 2 . 2 Reinforcement 22 | . . . 3 . . . 3 . . . . . . 1 2 . . 2 1 . . . . 4 . 6 Assault 6 | . . . . . . . . . . . . . . . . . . . 3 . 1 . . 2 . . Garrison 8 | . . . . . . . 4 . . . . . . . . . . . 1 . . . . . . 3 Intercept . | . . . . . . . . . . . . . . . . . . . . . . . . . . . Construction Impeded 4 | . . . . . . . . . . . . . . . . . . 1 . . . . . 1 . 2 Haulers Reinforced 1 | . . . . . . . . . . . . . . 1 . . . . . . . . . . . . Active Scanning Responses 1 | . . . . . . . . . . . . . . . . . . . . . . . . 1 . . Cargo Convoy Interrupts 1 | . . . . . . . . . . . . . . . . . . . 1 . . . . . . . Stealth | -11 -10 -10 -9 -9 -9 -8 -8 -7 -7 -7 -7 -7 -6 -6 -6 -6 -6 -6 -5 -5 -5 -5 -4 -4 -4 -4 --------- Run | Scr Mat Min Mat Min Exi Min Mat Fac Low Low Zio Dee Pro Fac Ext Cet Arc Hub Fac Upp Upp War Pro Fac Was Fac Distress Signals 21 | . 1 . 2 . . . 4 . . . . . . . 4 2 1 3 . . . . . 2 . 2 Communications Jammed . | . . . . . . . . . . . . . . . . . . . . . . . . . . . Distress Signals . | . . . . . . . . . . . . . . . . . . . . . . . . . . . Times Spotted 556 | . 7 22 53 6 . 3 37 2 23 13 36 22 12 21 35 26 14 17 38 5 26 31 20 32 6 49 Peak Tracking Total 18 | . 5 13 9 3 . 1 5 1 7 5 8 5 4 4 8 12 1 5 7 3 10 18 5 7 6 13 Tactical Retreats 59 | . 1 3 3 . . . 1 . 4 1 11 6 . 4 3 3 . 2 2 . 2 1 2 3 1 6 Traps | -11 -10 -10 -9 -9 -9 -8 -8 -7 -7 -7 -7 -7 -6 -6 -6 -6 -6 -6 -5 -5 -5 -5 -4 -4 -4 -4 ------- Run | Scr Mat Min Mat Min Exi Min Mat Fac Low Low Zio Dee Pro Fac Ext Cet Arc Hub Fac Upp Upp War Pro Fac Was Fac Traps Triggered 12 | . . . 2 . . . 1 . . . . . . 1 4 . . 1 . . . . . 1 . 2 Indirectly . | . . . . . . . . . . . . . . . . . . . . . . . . . . . Trap Hack Attempts . | . . . . . . . . . . . . . . . . . . . . . . . . . . . Triggered . | . . . . . . . . . . . . . . . . . . . . . . . . . . . Disarmed . | . . . . . . . . . . . . . . . . . . . . . . . . . . . Reprogrammed . | . . . . . . . . . . . . . . . . . . . . . . . . . . . Reused . | . . . . . . . . . . . . . . . . . . . . . . . . . . . Traps Extracted . | . . . . . . . . . . . . . . . . . . . . . . . . . . . Installed . | . . . . . . . . . . . . . . . . . . . . . . . . . . . Triggered 17 | . . . 1 . . . . . . 1 . . . . . . . 1 3 . . 11 . . . . Machines | -11 -10 -10 -9 -9 -9 -8 -8 -7 -7 -7 -7 -7 -6 -6 -6 -6 -6 -6 -5 -5 -5 -5 -4 -4 -4 -4 ---------- Run | Scr Mat Min Mat Min Exi Min Mat Fac Low Low Zio Dee Pro Fac Ext Cet Arc Hub Fac Upp Upp War Pro Fac Was Fac Machines Disabled 63 | . . . 1 1 . . . . 1 . 3 3 . 5 6 . 3 2 10 . . 1 . 25 . 2 Max in Single Turn 8 | . . . 1 1 . . . . 1 . 1 1 . 3 2 . 1 1 2 . . 1 . 8 . 1 Garrison Access 3 | . . . . . . . 1 . . . . . . . . . . 1 1 . . . . . . . Network Hub 1 | . . . . . . . . . . . . . . . . . . 1 . . . . . . . . Energy Cycler 1 | . . . . . . . . . . . . . . . 1 . . . . . . . . . . . Machines Sabotaged 1 | . . . . . . . . . . . . . . . . . . 1 . . . . . . . . Garrisons Compromised 1 | . . . . . . . . . . . . . . . . . . . 1 . . . . . . . Overloaded Fab Kills . | . . . . . . . . . . . . . . . . . . . . . . . . . . . Fab Network Shutdowns . | . . . . . . . . . . . . . . . . . . . . . . . . . . . Hacking | -11 -10 -10 -9 -9 -9 -8 -8 -7 -7 -7 -7 -7 -6 -6 -6 -6 -6 -6 -5 -5 -5 -5 -4 -4 -4 -4 --------- Run | Scr Mat Min Mat Min Exi Min Mat Fac Low Low Zio Dee Pro Fac Ext Cet Arc Hub Fac Upp Upp War Pro Fac Was Fac Machines Accessed 58 | . 1 . 7 1 2 . 6 9 1 1 . . . 9 5 . . 3 10 . . 1 . 1 . 1 Terminals 35 | . 1 . 5 . . . 4 3 . . . . . 7 5 . . 2 7 . . . . . . 1 Fabricators 6 | . . . . . . . . 2 . . . . . 2 . . . . 1 . . . . 1 . . Repair Stations 5 | . . . 1 . . . . 3 . . . . . . . . . . 1 . . . . . . . Recycling Units 1 | . . . 1 . . . . . . . . . . . . . . . . . . . . . . . Scanalyzers 2 | . . . . . . . 1 1 . . . . . . . . . . . . . . . . . . Garrison Access 3 | . . . . . . . 1 . . . . . . . . . . 1 1 . . . . . . . Total Hacks 198 | . 2 . 19 1 2 . 20 26 1 1 . . . 34 9 . . 11 67 . . 1 . 2 . 2 Successful 106 | . . . 10 1 2 . 11 10 1 1 . . . 17 6 . . 9 37 . . 1 . . . . Failed 91 | . 2 . 9 . . . 9 16 . . . . . 17 3 . . 2 29 . . . . 2 . 2 Catastrophic 9 | . . . . . . . 1 1 . . . . . 3 . . . . 2 . . . . . . 2 Database Lockouts 1 | . . . . . . . . . . . . . . . . . . . 1 . . . . . . . Manual 75 | . . . 5 . 1 . 13 7 . . . . . 19 2 . . 5 21 . . . . 2 . . Terminals 148 | . 2 . 16 . . . 16 11 . . . . . 26 9 . . 10 56 . . . . . . 2 Fabricators 19 | . . . . . . . . 5 . . . . . 8 . . . . 4 . . . . 2 . . Repair Stations 12 | . . . 2 . . . . 4 . . . . . . . . . . 6 . . . . . . . Recycling Units 1 | . . . 1 . . . . . . . . . . . . . . . . . . . . . . . Scanalyzers 9 | . . . . . . . 3 6 . . . . . . . . . . . . . . . . . . Garrison Access 3 | . . . . . . . 1 . . . . . . . . . . 1 1 . . . . . . . Terminal Hacks 67 | . . . 7 1 2 . 6 3 1 1 . . . 10 6 . . 5 24 . . 1 . . . . Record 1 | . . . . . 1 . . . . . . . . . . . . . . . . . . . . . Part Schematic 2 | . . . . . . . . . . . . . . 1 . . . . 1 . . . . . . . Robot Schematic 2 | . . . . . . . 1 . . . . . . 1 . . . . . . . . . . . . Robot Analysis 1 | . . . . . . . . . . . . . . . . . . 1 . . . . . . . . Prototype ID Bank 4 | . . . 1 . . . . . . . . . . . . . . . 3 . . . . . . . Open Door 5 | . . . . 1 . . . . 1 1 . . . . 1 . . . . . . 1 . . . . Level Access Points 1 | . . . . . . . . . . . . . . . . . . 1 . . . . . . . . Branch Access Points 3 | . . . . . . . . 1 . . . . . 1 . . . . 1 . . . . . . . Emergency Access Points 1 | . . . . . . . . . . . . . . . . . . . 1 . . . . . . . Terminal Index 3 | . . . 1 . . . . 1 . . . . . . . . . . 1 . . . . . . . Fabricator Index 2 | . . . . . . . . . . . . . . 1 . . . . 1 . . . . . . . Garrison Index 1 | . . . . . . . . . . . . . . . . . . . 1 . . . . . . . Alert Level 10 | . . . 2 . . . . . . . . . . 2 1 . . 1 4 . . . . . . . Unreport Threat 13 | . . . 1 . . . 4 . . . . . . 2 2 . . . 4 . . . . . . . Locate Traps 6 | . . . . . . . . 1 . . . . . 1 2 . . . 2 . . . . . . . Patrol Status 1 | . . . 1 . . . . . . . . . . . . . . . . . . . . . . . Recall Investigation 1 | . . . . . . . . . . . . . . . . . . 1 . . . . . . . . Recall Extermination 1 | . . . . . . . . . . . . . . . . . . . 1 . . . . . . . Hauler Manifests 3 | . . . . . . . 1 . . . . . . 1 . . . . 1 . . . . . . . Registered Components 1 | . . . . . . . . . . . . . . . . . . . 1 . . . . . . . Zone Layout 4 | . . . 1 . . . . . . . . . . . . . . 1 2 . . . . . . . EX-Prototype ID Bank 1 | . . . . . 1 . . . . . . . . . . . . . . . . . . . . . Fabricator Hacks 8 | . . . . . . . . 1 . . . . . 4 . . . . 3 . . . . . . . Load Schematic 3 | . . . . . . . . . . . . . . 2 . . . . 1 . . . . . . . Build 5 | . . . . . . . . 1 . . . . . 2 . . . . 2 . . . . . . . Repair Station Hacks 9 | . . . 2 . . . . 2 . . . . . . . . . . 5 . . . . . . . Scan Component 4 | . . . 1 . . . . . . . . . . . . . . . 3 . . . . . . . Repair 3 | . . . 1 . . . . . . . . . . . . . . . 2 . . . . . . . Refit 2 | . . . . . . . . 2 . . . . . . . . . . . . . . . . . . Recycling Unit Hacks . | . . . . . . . . . . . . . . . . . . . . . . . . . . . Scanalyzer 4 | . . . . . . . 2 2 . . . . . . . . . . . . . . . . . . Insert Component 2 | . . . . . . . 1 1 . . . . . . . . . . . . . . . . . . Analyze 2 | . . . . . . . 1 1 . . . . . . . . . . . . . . . . . . Garrison Access Hacks 3 | . . . . . . . 1 . . . . . . . . . . 1 1 . . . . . . . Seal Access 3 | . . . . . . . 1 . . . . . . . . . . 1 1 . . . . . . . Unauthorized Hacks 15 | . . . 1 . . . 2 2 . . . . . 3 . . . 3 4 . . . . . . . Terminals 12 | . . . . . . . 2 2 . . . . . 2 . . . 3 3 . . . . . . . Track 2 | . . . . . . . . . . . . . . 1 . . . 1 . . . . . . . . Assimilate 2 | . . . . . . . . 1 . . . . . . . . . . 1 . . . . . . . Botnet 2 | . . . . . . . 1 . . . . . . . . . . . 1 . . . . . . . Operators 4 | . . . . . . . 1 1 . . . . . 1 . . . . 1 . . . . . . . Sabotage 2 | . . . . . . . . . . . . . . . . . . 2 . . . . . . . . Fabricators 2 | . . . . . . . . . . . . . . 1 . . . . 1 . . . . . . . Prioritize 1 | . . . . . . . . . . . . . . 1 . . . . . . . . . . . . Haulers 1 | . . . . . . . . . . . . . . . . . . . 1 . . . . . . . Repair Stations . | . . . . . . . . . . . . . . . . . . . . . . . . . . . Recycling Units 1 | . . . 1 . . . . . . . . . . . . . . . . . . . . . . . Tunnel 1 | . . . 1 . . . . . . . . . . . . . . . . . . . . . . . Scanalyzers . | . . . . . . . . . . . . . . . . . . . . . . . . . . . Garrison Access . | . . . . . . . . . . . . . . . . . . . . . . . . . . . Data Cores Recovered 3 | . . . . . . . . . . . . . . 1 1 . . 1 . . . . . . . . Used . | . . . . . . . . . . . . . . . . . . . . . . . . . . . Hacking Detections 42 | . 1 . 6 . . . 4 6 . . . . . 9 4 . . 2 8 . . . . 1 . 1 Full Trace Events 3 | . . . . . . . . 1 . . . . . 1 . . . . . . . . . . . 1 Feedback Events 2 | . . . . . . . . 1 . . . . . . . . . . . . . . . . . 1 Corruption 2 | . . . . . . . . 1 . . . . . . . . . . . . . . . . . 1 Feedback Blocked . | . . . . . . . . . . . . . . . . . . . . . . . . . . . Robot Schematics Acquired 2 | . . . . . . . 1 . . . . . . 1 . . . . . . . . . . . . Robots Built 3 | . . . . . . . . 3 . . . . . . . . . . . . . . . . . . Matter 252 | . . . . . . . . 252 . . . . . . . . . . . . . . . . . . Time 67 | . . . . . . . . 67 . . . . . . . . . . . . . . . . . . Total Robot Build Rating 12 | . . . . . . . . 12 . . . . . . . . . . . . . . . . . . Part Schematics Acquired 4 | . . . . . . . 1 1 . . . . . 1 . . . . 1 . . . . . . . Parts Built 6 | . . . . . . . . . . . . . . 2 . . . . 4 . . . . . . . Matter 628 | . . . . . . . . . . . . . . 336 . . . . 292 . . . . . . . Time 179 | . . . . . . . . . . . . . . 131 . . . . 48 . . . . . . . Total Part Build Rating 22 | . . . . . . . . . . . . . . 10 . . . . 12 . . . . . . . Parts Repaired 3 | . . . 1 . . . . . . . . . . . . . . . 2 . . . . . . . Time 220 | . . . 38 . . . . . . . . . . . . . . . 182 . . . . . . . Parts Recycled . | . . . . . . . . . . . . . . . . . . . . . . . . . . . Recycled Matter . | . . . . . . . . . . . . . . . . . . . . . . . . . . . Retrieved Matter . | . . . . . . . . . . . . . . . . . . . . . . . . . . . Retrieved Components . | . . . . . . . . . . . . . . . . . . . . . . . . . . . Parts Scanalyzed 2 | . . . . . . . 1 1 . . . . . . . . . . . . . . . . . . Part Schematics Acquired 2 | . . . . . . . 1 1 . . . . . . . . . . . . . . . . . . Parts Damaged . | . . . . . . . . . . . . . . . . . . . . . . . . . . . Bothacking | -11 -10 -10 -9 -9 -9 -8 -8 -7 -7 -7 -7 -7 -6 -6 -6 -6 -6 -6 -5 -5 -5 -5 -4 -4 -4 -4 ------------ Run | Scr Mat Min Mat Min Exi Min Mat Fac Low Low Zio Dee Pro Fac Ext Cet Arc Hub Fac Upp Upp War Pro Fac Was Fac Used RIF Installer . | . . . . . . . . . . . . . . . . . . . . . . . . . . . Robots Hacked 2 | . . . . . . . . 1 . . . . . . . . 1 . . . . . . . . . Non-combat 2 | . . . . . . . . 1 . . . . . . . . 1 . . . . . . . . . Combat . | . . . . . . . . . . . . . . . . . . . . . . . . . . . Robot Hacks Applied 2 | . . . . . . . . 1 . . . . . . . . 1 . . . . . . . . . find_chute 1 | . . . . . . . . 1 . . . . . . . . . . . . . . . . . . check_alert 1 | . . . . . . . . . . . . . . . . . 1 . . . . . . . . . Relay Couplers Released 3 | . . . . . . . . . . . . . . . . . . . . . . . . . . 3 Programmers 3 | . . . . . . . . . . . . . . . . . . . . . . . . . . 3 Robots Rewired 19 | . . . . . . . . . 2 . . . . . 12 . . . . . 2 3 . . . . Allies Hacked 2 | . . . . . . . . . . . . . . . . . . . . . . 2 . . . . Hacks Repelled . | . . . . . . . . . . . . . . . . . . . . . . . . . . . Allies | -11 -10 -10 -9 -9 -9 -8 -8 -7 -7 -7 -7 -7 -6 -6 -6 -6 -6 -6 -5 -5 -5 -5 -4 -4 -4 -4 -------- Run | Scr Mat Min Mat Min Exi Min Mat Fac Low Low Zio Dee Pro Fac Ext Cet Arc Hub Fac Upp Upp War Pro Fac Was Fac Total Allies 31 | . . . . 3 . . . 4 2 . . . . . 16 . . . 1 . 2 3 . . . . Largest Group 10 | . . . . 3 1 . . 4 2 2 . . . . 10 . . . 1 . 2 5 . . . . Highest-Rated Group 423 | . . . . 72 31 . . 86 46 29 . . . . 423 . . . 26 . 59 254 . . . . Highest-Rated Ally 156 | . . . . 31 31 . . 26 26 16 . . . . 156 . . . 26 . 30 65 . . . . Total Orders 12 | . . . . . . . . . 1 . . . . . 4 . . . 1 . 3 3 . . . . STAY 5 | . . . . . . . . . . . . . . . 1 . . . 1 . 1 2 . . . . ROAM 2 | . . . . . . . . . 1 . . . . . 1 . . . . . . . . . . . FOLLOW 5 | . . . . . . . . . . . . . . . 2 . . . . . 2 1 . . . . Ally Attacks 213 | . . . . 8 . . . . 19 37 . . . . 137 . . . . . . 12 . . . . Total Damage 5266 | . . . . 146 . . . . 331 1018 . . . . 3612 . . . . . . 159 . . . . Kills 37 | . . . . 4 . . . . 4 5 . . . . 24 . . . . . . . . . . . Allies Corrupted . | . . . . . . . . . . . . . . . . . . . . . . . . . . . Allies Melted 2 | . . . . . . . . . 1 . . . . . . . . . . . . 1 . . . . Turrets Deployed 2 | . . . . . . . . . . 2 . . . . . . . . . . . . . . . . Intel | -11 -10 -10 -9 -9 -9 -8 -8 -7 -7 -7 -7 -7 -6 -6 -6 -6 -6 -6 -5 -5 -5 -5 -4 -4 -4 -4 ------- Run | Scr Mat Min Mat Min Exi Min Mat Fac Low Low Zio Dee Pro Fac Ext Cet Arc Hub Fac Upp Upp War Pro Fac Was Fac Robot Analysis Total 1 | . . . . . . . . . . . . . . . . . . 1 . . . . . . . . Derelict Logs Recovered 9 | . . 2 . 1 . . . . 1 1 1 . . . . . . . . 1 . . 2 . . . Drone Launches . | . . . . . . . . . . . . . . . . . . . . . . . . . . . Drone Recoveries . | . . . . . . . . . . . . . . . . . . . . . . . . . . . Exploration | -11 -10 -10 -9 -9 -9 -8 -8 -7 -7 -7 -7 -7 -6 -6 -6 -6 -6 -6 -5 -5 -5 -5 -4 -4 -4 -4 ------------- Run | Scr Mat Min Mat Min Exi Min Mat Fac Low Low Zio Dee Pro Fac Ext Cet Arc Hub Fac Upp Upp War Pro Fac Was Fac Turns Passed 31738 | 196 483 969 2342 898 488 179 2007 381 530 441 1215 4990 1835 992 2277 521 835 525 2118 1011 992 1016 2232 1312 88 865 Spaces Moved 15681 | 92 320 778 973 509 299 106 832 507 703 374 1637 2389 457 486 762 180 199 228 773 500 338 531 587 665 69 387 Core 600 | 7 . 452 . . . . . . . 1 16 64 . . 2 . 15 . . . . . 10 . . 33 Treads 4165 | 51 53 258 761 509 299 106 732 . . . . . . . . 154 184 228 666 . . 40 110 9 . 5 Legs 6179 | 34 267 68 212 . . . . . . . . 1407 457 486 760 26 . . 107 500 338 491 467 559 . . Wheels 478 | . . . . . . . . . . . . . . . . . . . . . . . . 97 69 312 Hover . | . . . . . . . . . . . . . . . . . . . . . . . . . . . Flight 4259 | . . . . . . . 100 507 703 373 1621 918 . . . . . . . . . . . . . 37 Fastest Speed 50 | 50 120 50 120 160 160 160 50 50 50 50 50 50 132 132 132 132 160 160 160 196 132 126 168 130 125 50 Average Speed 136 | 136 126 93 151 160 160 160 147 50 51 52 57 132 198 158 197 163 268 160 187 196 195 164 220 142 128 105 Slowest Speed 1900 | 160 160 200 200 160 160 160 167 50 150 800 850 1750 199 199 1900 199 1600 160 310 196 196 276 1600 270 140 270 Overloaded Moves . | . . . . . . . . . . . . . . . . . . . . . . . . . . . Propulsion Burnouts . | . . . . . . . . . . . . . . . . . . . . . . . . . . . Robots Hopped 6 | . . . . . . . . 5 . . . . . . . . . . . . . . . . . 1 Cave-ins Triggered 3 | . . . . . . . . . . . . . . 1 . 2 . . . . . . . . . . Exploration Rate (%) 54 | 5 50 98 71 98 62 37 57 14 73 44 86 85 63 14 71 63 74 33 17 61 53 75 75 18 65 17 Regions Visited 26 Branch Regions 17 Pre-discovered Areas 4 | . . . 1 1 1 . . . . . . . . . . . . . . 1 . . . . . . Known Exits Taken 5 | . . 1 . . . . . 1 . . . . . 1 . . . 1 1 . . . . . . . Unknown Exits Taken 19 | 1 1 . 1 1 1 1 1 . 1 1 1 1 1 . 1 1 1 . . 1 1 1 1 . . . Scrap Searched 17 | . . 1 . 1 . . . . 1 2 3 . 4 . . . . . . 3 . . 2 . . . Spaces Dug 67 | . . . . . . . . . . . 2 . 3 8 . 3 . 9 . . . . 1 33 . 8 Terrain Destroyed 664 | . . 2 20 . . . . . 5 . 2 31 47 59 47 22 28 21 121 9 44 4 54 126 . 22 Melee 2 | . . . . . . . . . . . 2 . . . . . . . . . . . . . . . Projectile 389 | . . 2 . . . . . . . . . 9 17 30 28 22 28 21 42 9 44 4 54 60 . 19 AOE 270 | . . . 20 . . . . . 5 . . 22 30 29 19 . . . 79 . . . . 66 . . Terrain Rammed . | . . . . . . . . . . . . . . . . . . . . . . . . . . . Walls Destroyed . | . . . . . . . . . . . . . . . . . . . . . . . . . . . Machines Disabled . | . . . . . . . . . . . . . . . . . . . . . . . . . . . Actions | -11 -10 -10 -9 -9 -9 -8 -8 -7 -7 -7 -7 -7 -6 -6 -6 -6 -6 -6 -5 -5 -5 -5 -4 -4 -4 -4 --------- Run | Scr Mat Min Mat Min Exi Min Mat Fac Low Low Zio Dee Pro Fac Ext Cet Arc Hub Fac Upp Upp War Pro Fac Was Fac Total 24020 | 132 377 981 1549 576 313 110 1449 630 843 606 1783 4124 1342 630 1474 306 445 340 1292 514 577 665 1368 879 68 647 Wait 5813 | 14 21 132 264 40 . . 418 90 81 197 34 1511 842 54 503 16 183 80 347 1 157 55 674 59 . 40 Move 15644 | 91 319 777 972 508 298 105 831 496 702 373 1636 2388 456 484 761 179 198 228 772 499 337 530 586 665 68 385 Hop 6 | . . . . . . . . 5 . . . . . . . . . . . . . . . . . 1 Pick Up 235 | 3 2 7 40 6 5 . 22 6 3 9 3 29 3 8 2 10 8 . 15 5 6 1 3 12 . 27 Fast Attach 222 | 9 5 3 24 . . . 8 5 5 2 12 20 1 11 3 15 7 . 16 . 1 18 6 24 . 27 Attach 135 | . 1 7 15 4 1 2 11 4 4 2 3 6 1 1 3 11 4 2 16 . 3 . . 11 . 23 Detach 157 | 2 1 4 4 1 . . 3 5 6 1 5 17 11 10 13 11 2 1 13 . 1 15 5 19 . 7 Swap 139 | . 3 8 17 . . . 6 4 15 6 10 11 1 3 1 4 4 3 10 . 4 1 3 8 . 17 Drop 305 | . 9 6 41 6 9 . 29 12 5 8 9 41 4 13 5 12 13 . 24 1 8 9 15 11 . 15 Fire 1051 | 13 11 16 157 10 . 3 107 2 13 8 53 101 23 45 31 46 25 21 77 8 44 4 76 69 . 88 Melee 33 | . . . . . . . . 1 . . 18 . . . . . 1 . . . . . . . . 13 Ram 3 | . . . . . . . . . . . . . . . . . . . . . . 3 . . . . Kick 17 | . 5 2 6 . . . . . . . . . . . 2 1 . . . . . . . 1 . . Crush 51 | . . 19 9 1 . . 14 . . . . . . . . 1 . 5 2 . . . . . . . Escape Stasis 20 | . . . . . . . . . . . . . . 1 19 . . . . . . . . . . . Rewire 189 | . . . . . . . . . 9 . . . . . 131 . . . . . 16 29 . . . 4 Trap . | . . . . . . . . . . . . . . . . . . . . . . . . . . . Miscellaneous . | . . . . . . . . . . . . . . . . . . . . . . . . . . . Route ------- -11/Scrapyard -10/Materials -10/Mines (discovered 2 exits: *Mat x2) -9/Materials (discovered 4 exits: *Mat x2 / *Min x2) -9/Mines (discovered 3 exits: *Mat x2 / *Exi) -9/Exiles -8/Mines -8/Materials -7/Factory (discovered 2 exits: *Low x2) -7/Lower Caves -7/Lower Caves -7/Zion (discovered 2 exits: [*Dee] / [*Pro]) -7/Deep Caves -6/Proximity Caves -6/Factory (discovered 5 exits: *Fac / Low x2 / *Ext x2) -6/Extension (discovered 2 exits: *Fac / [*Cet]) -6/Cetus (discovered 2 exits: *Fac / [*Arc]) -6/Archives -6/Hub_04(d) (discovered 4 exits: *Fac x4) -5/Factory (discovered 4 exits: *Fac x2 / *Upp x2) -5/Upper Caves -5/Upper Caves -5/Warlord -4/Proximity Caves -4/Factory -4/Waste -4/Factory History --------- Turn | Location | Event 2 | -11/Scrapyard | Discovered new exit (range 16) 197 | -11/Scrapyard | Entered Materials 304 | -10/Materials | Build established: Mutant 518 | -10/Materials | Discovered new exit (range 16) 680 | -10/Materials | Entered Mines 741 | -10/Mines | Learned Materials non-interactive machine intel 776 | -10/Mines | Assembled infested the area 809 | -10/Mines | Identified exit to Materials 858 | -10/Mines | Discovered exit to Materials (range 7) 1462 | -10/Mines | Build established: Scavenger-Mutant 1590 | -10/Mines | System corruption reached 10% 1649 | -10/Mines | Entered Materials 1649 | -9/Materials | Evolved 2 slots: Propulsion x1, Utility x1 1650 | -9/Materials | Loaded intel: 49 non-interactive machine locations 1928 | -9/Materials | Lost 8 parts (1p2n3u2w) 2951 | -9/Materials | Discovered new exit (range 16) 3085 | -9/Materials | Discovered new exit (range 12) 3214 | -9/Materials | Discovered new exit (range 11) 3468 | -9/Materials | Repaired Hrd. Medium Armor Plating 3528 | -9/Materials | Discovered new exit (range 15) 3660 | -9/Materials | Build established: Mutant 3991 | -9/Materials | Entered Mines 4063 | -9/Mines | Discovered new exit (range 13) 4410 | -9/Mines | Learned location of Recycling (-8) 4412 | -9/Mines | Discovered new exit (range 13) 4415 | -9/Mines | Received a Mining Laser from a helpful Derelict 4537 | -9/Mines | Met a Derelict who couldn't figure out how to use a Trap Extractor 4883 | -9/Mines | Deemed a non-threat by the Exiles lab entrance 4883 | -9/Mines | Discovered new exit (range 5) 4889 | -9/Mines | Entered Exiles 4889 | -9/Exiles | Accompanied by 1 ally 4919 | -9/Exiles | Led the pair of lost Derelicts to a safe place 4928 | -9/Exiles | Met 8R-AWN 4955 | -9/Exiles | Met EX-HEX 5022 | -9/Exiles | Met EX-DEC 5086 | -9/Exiles | Learned location of Zion (-7) 5126 | -9/Exiles | Met EX-BIN 5150 | -9/Exiles | Aligned with FarCom system 5152 | -9/Exiles | Given EX-Vault access code 5189 | -9/Exiles | Opened EX-Vault 5202 | -9/Exiles | Found Superbattery 5210 | -9/Exiles | Found Deploy-a-Sentry 5212 | -9/Exiles | Found Deploy-a-Sentry 5215 | -9/Exiles | Found Deploy-a-Sentry 5222 | -9/Exiles | Found Flying Fortress v7 5254 | -9/Exiles | Warned to stay clear of 0b10 Research branches 5356 | -9/Exiles | Discovered new exit (range 14) 5377 | -9/Exiles | Stole three prototypes: Deploy-a-Sentry, Superbattery, Flying Fortress v7 5377 | -9/Exiles | Entered Mines 5540 | -8/Mines | Discovered new exit (range 8) 5556 | -8/Mines | Entered Materials 5556 | -8/Materials | Evolved 2 slots: Propulsion x1, Utility x1 5834 | -8/Materials | Garrison activated, responded to threat 6439 | -8/Materials | Build established: Scavenger-Mutant 6522 | -8/Materials | Garrison activated, responded to threat 7468 | -8/Materials | Discovered new exit (range 11) 7563 | -8/Materials | Entered Factory 7563 | -7/Factory | Evolved 2 slots: Power x1, Weapon x1 7565 | -7/Factory | FarCom data flow suspended 7760 | -7/Factory | Identified exit to Lower Caves 7934 | -7/Factory | Fabricated B-48 Gladiator? 7944 | -7/Factory | Entered Lower Caves 7944 | -7/Lower Caves | Accompanied by 2 allies 7944 | -7/Lower Caves | Spotted RA-ONY(f) 7944 | -7/Lower Caves | Spotted 2G-5XU(f) 7945 | -7/Lower Caves | Encountered a Master Thief 7945 | -7/Lower Caves | Encountered a Master Thief 7945 | -7/Lower Caves | Deploy-a-Sentry stolen by Master Thief 7946 | -7/Lower Caves | Allies destroyed 2G-5XU(f) 7956 | -7/Lower Caves | Destroyed RA-ONY(f) 8217 | -7/Lower Caves | Learned Factory garrison access intel 8257 | -7/Lower Caves | Build established: Tank 8340 | -7/Lower Caves | Attracted the attention of an 0b10 outpost 8433 | -7/Lower Caves | Encountered a Warlord checkpoint 8440 | -7/Lower Caves | Discovered new exit (range 10) 8474 | -7/Lower Caves | Entered another Lower Caves area 8474 | -7/Lower Caves | Accompanied by 2 allies 8558 | -7/Lower Caves | Learned Factory terminal intel 8718 | -7/Lower Caves | Spotted WR-ASU(f) 8720 | -7/Lower Caves | Encountered a Master Thief 8720 | -7/Lower Caves | DAS Turret deployed 8720 | -7/Lower Caves | Spotted AV-FWG(f) 8721 | -7/Lower Caves | DAS Turret deployed 8721 | -7/Lower Caves | Spotted 2Y-AS6(f) 8722 | -7/Lower Caves | Spotted ND-9VH(f) 8722 | -7/Lower Caves | Spotted 3X-KP4(f) 8723 | -7/Lower Caves | Encountered a Master Thief 8723 | -7/Lower Caves | Encountered a Master Thief 8724 | -7/Lower Caves | Encountered a Master Thief 8726 | -7/Lower Caves | Encountered a Master Thief 8727 | -7/Lower Caves | Deploy-a-Sentry stolen by Master Thief 8729 | -7/Lower Caves | Flying Fortress v7 stolen by Master Thief 8729 | -7/Lower Caves | Allies destroyed ND-9VH(f) 8731 | -7/Lower Caves | Allies destroyed 2Y-AS6(f) 8748 | -7/Lower Caves | Destroyed 3X-KP4(f) 8752 | -7/Lower Caves | Allies destroyed WR-ASU(f) 8782 | -7/Lower Caves | Discovered new exit (range 5) 8915 | -7/Lower Caves | Entered Zion 8956 | -7/Zion | System corruption cleaned by Quarantine Array 9000 | -7/Zion | Found Prototype Processor 9000 | -7/Zion | Identified Exp. Melee Analysis Suite 9010 | -7/Zion | Found Prototype Processor 9010 | -7/Zion | Identified Spectral Analyzer 9028 | -7/Zion | Found Prototype Hackware 9028 | -7/Zion | Identified Exp. Hacking Suite 9038 | -7/Zion | Found Prototype Processor 9038 | -7/Zion | Identified Exp. Armor Integrity Analyzer 9048 | -7/Zion | Found Prototype Processor 9048 | -7/Zion | Identified Exp. Core Analyzer 9058 | -7/Zion | Found Prototype Processor 9058 | -7/Zion | Identified Exp. Terrain Scan Processor 9128 | -7/Zion | Discovered new exit (range 15) 9187 | -7/Zion | Learned Factory security intel 9206 | -7/Zion | Found Prototype Device 9206 | -7/Zion | Identified Phasing AFG 9587 | -7/Zion | Discovered new exit (range 5) 9693 | -7/Zion | Attacked by Zionites 9980 | -7/Zion | Destroyed Imprinter 9986 | -7/Zion | Extracted access codes from Imprinter's data core 10129 | -7/Zion | Saw the warning signs outside the Deep Caves entrance 10130 | -7/Zion | Entered Deep Caves 10285 | -7/Deep Caves | Found Prototype Protection 10318 | -7/Deep Caves | Z-Facility disabled 10448 | -7/Deep Caves | Found Surveybot 24 Scanner 10697 | -7/Deep Caves | Build established: Mutant 11102 | -7/Deep Caves | Discovered new exit (range 6) 11200 | -7/Deep Caves | Identified Zio. Heavy Carapace 11269 | -7/Deep Caves | Spotted as-69629 11413 | -7/Deep Caves | Destroyed as-69629 11433 | -7/Deep Caves | Found Corrupted Unknown Device 11433 | -7/Deep Caves | Identified GOLEM Unit 11884 | -7/Deep Caves | Build established: Golem 12639 | -7/Deep Caves | Found Prototype Protection 12639 | -7/Deep Caves | Identified Zio. Weapon Casing 12777 | -7/Deep Caves | Found Zio. Weapon Casing 13059 | -7/Deep Caves | Found Zio. Weapon Casing 13083 | -7/Deep Caves | Build established: Scavenger-Golem 13389 | -7/Deep Caves | Found Zio. Weapon Casing 13468 | -7/Deep Caves | Build established: Golem 13976 | -7/Deep Caves | Exposed GOLEM chamber 14031 | -7/Deep Caves | Found Corrupted GOLEM Unit 14288 | -7/Deep Caves | Build established: Mutant 14800 | -7/Deep Caves | Found Corrupted GOLEM Unit 14909 | -7/Deep Caves | Found Surveybot 24 Chip 15052 | -7/Deep Caves | Build established: Golem 15120 | -7/Deep Caves | Entered Proximity Caves 15135 | -6/Proximity Caves | Core integrity fell below 50% 15666 | -6/Proximity Caves | Spotted B-75 Beast 15675 | -6/Proximity Caves | Destroyed B-75 Beast 16136 | -6/Proximity Caves | Discovered new exit (range 13) 16953 | -6/Proximity Caves | System corruption reached 10% 16955 | -6/Proximity Caves | Entered Factory 16955 | -6/Factory | Evolved 2 slots: Utility x2 16957 | -6/Factory | Loaded intel: 22 terminal locations 16958 | -6/Factory | Loaded intel: 4 garrison access locations 17120 | -6/Factory | Identified exit to Lower Caves 17120 | -6/Factory | Identified exit to Extension 17226 | -6/Factory | Crushed by falling debris 17579 | -6/Factory | Fabricated Arm. Leg (x2) 17693 | -6/Factory | Discovered new exit (range 16) 17789 | -6/Factory | Found Prototype Launcher 17936 | -6/Factory | Build established: Mutant 17947 | -6/Factory | Entered Extension 18253 | -6/Extension | Build established: Golem 18414 | -6/Extension | Rescued A7 18572 | -6/Extension | Rescued a captive Derelict 18573 | -6/Extension | Rescued a captive Derelict 18982 | -6/Extension | Build established: Commander-Golem 19013 | -6/Extension | Spotted B-75 Beast 19017 | -6/Extension | Allies destroyed B-75 Beast 19018 | -6/Extension | Spotted B-75 Beast 19036 | -6/Extension | Destroyed B-75 Beast 19104 | -6/Extension | Extracted ID and sensor layout for unrecognized location from A7's data core 19302 | -6/Extension | Build established: Golem 19587 | -6/Extension | Energy Cycler disabled 19588 | -6/Extension | Rescued a captive Derelict 19588 | -6/Extension | Rescued a captive Derelict 19588 | -6/Extension | Rescued a captive Derelict 19590 | -6/Extension | Rescued a captive Derelict 19591 | -6/Extension | Rescued a captive Derelict 19593 | -6/Extension | Rescued a captive Derelict 19593 | -6/Extension | Rescued a captive Derelict 20030 | -6/Extension | Discovered new exit (range 10) 20032 | -6/Extension | Discovered new exit (range 6) 20224 | -6/Extension | Entered Cetus 20249 | -6/Cetus | Spotted Cetus Guard 20249 | -6/Cetus | Spotted Cetus Guard 20267 | -6/Cetus | Spotted Cetus Guard 20277 | -6/Cetus | Destroyed Cetus Guard 20305 | -6/Cetus | Crushed by falling debris 20316 | -6/Cetus | Spotted Cetus Guard 20317 | -6/Cetus | Crushed by falling debris 20317 | -6/Cetus | System corruption reached 10% 20329 | -6/Cetus | Core integrity fell below 50% 20329 | -6/Cetus | Destroyed Cetus Guard 20332 | -6/Cetus | Destroyed Cetus Guard 20357 | -6/Cetus | Lost 8 parts (1p5u2w) 20376 | -6/Cetus | Destroyed 9 combat bots 20518 | -6/Cetus | Discovered new exit (range 15) 20580 | -6/Cetus | Spotted Cetus Guard 20581 | -6/Cetus | Spotted Cetus Guard 20586 | -6/Cetus | Spotted Cetus Guard 20587 | -6/Cetus | Spotted Cetus Guard 20594 | -6/Cetus | Destroyed Cetus Guard 20600 | -6/Cetus | Destroyed Cetus Guard 20616 | -6/Cetus | Destroyed Cetus Guard 20637 | -6/Cetus | Destroyed Cetus Guard 20651 | -6/Cetus | Lost 3 parts (2p1w) 20657 | -6/Cetus | Discovered new exit (range 15) 20664 | -6/Cetus | Destroyed 7 combat bots 20679 | -6/Cetus | Met Revision 17 20745 | -6/Cetus | Entered Archives 20835 | -6/Archives | Build established: Scavenger-Tank 21081 | -6/Archives | Discovered new exit (range 15) 21580 | -6/Archives | Entered Hub_04(d) 21765 | -6/Hub_04(d) | Discovered new exit (range 16) 21788 | -6/Hub_04(d) | Spotted B-75 Beast 21893 | -6/Hub_04(d) | Identified exit to Factory 22003 | -6/Hub_04(d) | Network Hub disabled 22103 | -6/Hub_04(d) | Spotted Lightning 22105 | -6/Hub_04(d) | Entered Factory 22105 | -5/Factory | Evolved 2 slots: Power x1, Propulsion x1 22234 | -5/Factory | Garrison activated, responded to threat 22433 | -5/Factory | Repaired Centrium Medium Armor Plating 22507 | -5/Factory | Repaired Quantum Reactor? 22718 | -5/Factory | Identified exit to Upper Caves 22770 | -5/Factory | P-70 Sage assimilated allied Administrator 6a 22857 | -5/Factory | Fabricated Arm. Treads? 22889 | -5/Factory | Fabricated Arm. Treads? 22986 | -5/Factory | Cargo convoy interrupted 23263 | -5/Factory | Discovered new exit (range 5) 23305 | -5/Factory | First assault squad dispatched 23412 | -5/Factory | System corruption reached 10% 23802 | -5/Factory | Build established: Generator-Golem 24048 | -5/Factory | Central database locked down 24129 | -5/Factory | Discovered new exit (range 9) 24223 | -5/Factory | Entered Upper Caves 24230 | -5/Upper Caves | Attracted the attention of an 0b10 checkpoint 24535 | -5/Upper Caves | Attacked by a delusional Derelict stockpiling parts 24907 | -5/Upper Caves | Discovered new exit (range 8) 25234 | -5/Upper Caves | Entered another Upper Caves area 25563 | -5/Upper Caves | Attracted the attention of an 0b10 outpost 25642 | -5/Upper Caves | Destroyed 8 combat bots 25648 | -5/Upper Caves | Lost 6 parts (1p2n1u2w) 26203 | -5/Upper Caves | Discovered new exit (range 13) 26226 | -5/Upper Caves | Entered Warlord 26226 | -5/Warlord | Accompanied by 2 allies 26273 | -5/Warlord | System corruption cleaned by Quarantine Array 26305 | -5/Warlord | Build established: Scavenger-Golem 26811 | -5/Warlord | Met Warlord 26836 | -5/Warlord | Warlord's base attacked by MAIN.C 26839 | -5/Warlord | Found Prototype Reactor 26839 | -5/Warlord | Identified Vortex Chain Reactor 26845 | -5/Warlord | Found Prototype Device 26845 | -5/Warlord | Identified Exp. Phase Shifter 26858 | -5/Warlord | Found Prototype Processor 26858 | -5/Warlord | Identified Exp. Target Analyzer 26861 | -5/Warlord | Found Prototype Device 26861 | -5/Warlord | Identified Thermal Barrier 27005 | -5/Warlord | Spotted B-86 Titan 27007 | -5/Warlord | Destroyed B-86 Titan 27062 | -5/Warlord | Found Prototype Energy Gun 27062 | -5/Warlord | Identified Vortex Rifle 27066 | -5/Warlord | Found Vortex Rifle 27073 | -5/Warlord | Found Prototype Energy Cannon 27073 | -5/Warlord | Identified Vortex Cannon 27076 | -5/Warlord | Found Vortex Cannon 27133 | -5/Warlord | Build established: Generator-Tank 27156 | -5/Warlord | Warlord forces counterattacked 27160 | -5/Warlord | System corruption reached 30% 27185 | -5/Warlord | Spotted Executioner 27199 | -5/Warlord | Spotted Striker 27215 | -5/Warlord | Discovered new exit (range 12) 27236 | -5/Warlord | Spotted Executioner 27236 | -5/Warlord | Spotted Striker 27236 | -5/Warlord | Spotted Executioner 27242 | -5/Warlord | Entered Proximity Caves 27242 | -4/Proximity Caves | Accompanied by 1 ally 27700 | -4/Proximity Caves | Spotted B-86 Titan 27730 | -4/Proximity Caves | Destroyed B-86 Titan 27820 | -4/Proximity Caves | Build established: Scavenger-Golem 28497 | -4/Proximity Caves | Learned Research terminal intel 28585 | -4/Proximity Caves | Attracted the attention of an 0b10 checkpoint 28591 | -4/Proximity Caves | Core integrity fell below 50% 29377 | -4/Proximity Caves | Learned location of 1 exit from Research 29429 | -4/Proximity Caves | Build established: Generator-Gunner 29447 | -4/Proximity Caves | Discovered new exit (range 14) 29474 | -4/Proximity Caves | Entered Factory 29474 | -4/Factory | Evolved 2 slots: Power x1, Propulsion x1 29628 | -4/Factory | Discovered new exit (range 4) 29637 | -4/Factory | Identified exit to Research 29700 | -4/Factory | Spotted B-86 Titan 29803 | -4/Factory | Build established: Generator-Skirmisher 30474 | -4/Factory | First assault squad dispatched 30524 | -4/Factory | Found Prototype Device 30530 | -4/Factory | Identified Active Sensor Suite 30786 | -4/Factory | Sucked down chute 30786 | -4/Factory | Entered Waste 30796 | -4/Waste | Spotted C-40 Crusher 30798 | -4/Waste | Spotted C-40 Crusher 30809 | -4/Waste | Crushed by Compactor (1 part destroyed, 1 dropped) 30830 | -4/Waste | Spotted C-40 Crusher 30831 | -4/Waste | Spotted C-40 Crusher 30848 | -4/Waste | Spotted C-40 Crusher 30854 | -4/Waste | Crushed by Compactor (1 part destroyed) 30855 | -4/Waste | Discovered new exit (range 14) 30873 | -4/Waste | Identified exit to Factory 30874 | -4/Waste | Entered Factory 31121 | -4/Factory | Build established: Scavenger-Mutant 31383 | -4/Factory | Lost 12 parts (2p6n4u) 31464 | -4/Factory | Garrison activated, responded to threat 31613 | -4/Factory | Build established: Scavenger-Gunner 31704 | -4/Factory | System corruption reached 10% 31725 | -4/Factory | Core integrity fell below 50% 31735 | -4/Factory | Spotted B-86 Titan 31739 | -4/Factory | Self-destructed Last Messages --------------- 31707_ K-01 Serf destroyed. 31708_ K-01 Serf collects debris. 31708_ R-10 Processor collects Unknown Device. 31709_ System corrupted: Substantial component data lost. 31709_ Electrolaser destroyed. 31722_ Slug penetrates Wall. 31722_ Mic. Fission Core destroyed. 31722_ Field Propulsion Array destroyed. 31722_ Adv. Heat Sink destroyed. 31722_ Critical hit (Blast). 31722_ Knocked back. 31722_ Dropped Imp. Energy Well. 31723_ Critical hit (Destroy). 31723_ Myomer Leg destroyed. 31724_ Penetrated by Slug. 31724_ Knocked back. 31726_ O-32 Director: "IFF HANDSHAKE FAILED. SECURING TERMINAL." 31729_ System corrupted: Adv. Coolant Injector rejected. 31736_ ALERT: Hostiles spotted, dispatching reinforcements to Terminal F016. Map ----- +----------------------------------------------------+ | ??????# # % #??????????????? | | ??????# # "# #??????????????? | | ??????# # ###" ###??????????????? | | ??????# " ! #??# #????????????????? | | ??????# ] ! # #??# #????????????????? | | ??????# / #??# +????????????????? | | ??????# # #??# #????????????????? | | ??????# # #??#! #????????????????? | | ??????# # #??# #????????????????? | | ??????# ! # #??# #????????????????? | | ??????# # #######??# #????????????????? | | ??????# # ######???# #????????????????? | | ??????# # # = ???# #????????????????? | | ??????# ! # # ??# #????????????????? | | ??????# # # ??# #????????????????? | | ??????#####/#### # ?# #????????????????? | | ?????????? ???# # ?# #????????????????? | | ??????????""???# # # #????????????????? | | ????????? ???# # # #????????????????? | | ???????????????# # + +????????????????? | | ??? """"" ## # # # ???????????????? | | ? #####+######## # # ###??????????????? | | ## ^ ########?#% #????????????????? | | #### u ######### #????????????????? | | gh k #????????????????? | | @ #????????????????? | | ! % +????????????????? | | !*!!% #????????????????? | | /!!%!!/ u #????????????????? | | #####!!!!* """" """" #????????????????? | | ######*=!/ """" """" #????????????????? | | #%[!! /u """" """" BB ???????????????? | | =#*==%!= BB #??????????????? | | #%%!!! ###??????????????? | | #!!%#### ?? #????????????????? | | #!%*################?????###????????????????? | | #=! # ??? """"" ???????????????????????????? | | # # ??????????????????????????????????????? | | =[[# # ??????????????????????????????????????? | | *[%# # ??????????????????????????????????????? | | !%# # ??????????????????????????????????????? | | [%+ + ??????????????????????????????????????? | | ###### # ??????????????????????????????????????? | | # # ??????????????????????????????????????? | | # # ??????????????????????????????????????? | | # # ??????????????????????????????????????? | | # # ??????????????????????????????????????? | | # # ??????????????????????????????????????? | | # ##??????????????????????????????????????? | | # ##??????????????????????????????????????? | +----------------------------------------------------+ Best States ------------- Heat Dissipation 113 Coolant Potential 100 Energy Generation 95 Energy Capacity 3400 Matter Stores 450 Matter Capacity 450 Sight Range 20 Robot Scan Range 20 Terrain Scan Range 24 Terrain Scan Density 60 ECM Strength 1 Armor Coverage 1350 Resistance: KI 30 Propulsion Shielding 66 Utility Shielding 66 Weapon Shielding 100 Weapon Cycling 15 Phase Shifting 20 Evasion (%) 75 Targeting Accuracy 6 Target Analysis 5 Core Analysis 6 Recoil Reduction 5 Energy Filtering 30 Particle Charging 20 Salvage Targeting 2 Offensive Hacking 24 Defensive Hacking 24 Item Schematics ----------------- Arm. Treads | -8/Materials | Scanalyzed Imp. Utility Shielding | -7/Factory | Scanalyzed Arm. Leg | -6/Factory | Hacked Recoil Nullifier | -5/Factory | Hacked Robot Schematics ------------------ S-10 Pest | -8/Materials | Hacked S-27 Virus | -6/Factory | Hacked Fabricated ------------ B-48 Gladiator | x3 | -7/Factory | Preloaded Arm. Leg | x2 | -6/Factory Arm. Treads | x2 | -5/Factory Arm. Treads | x2 | -5/Factory Alien Tech Used ----------------- None Achievements -------------- None Challenges ------------ None Game ------ Seed FusionEnhancedAccelerator Manual? 0 Play Time 02:50:00 Cumulative 2143.5 hours Start 2021.08.21 @ 08:36:03 End 2021.08.21 @ 13:28:37 Sessions 7 Manual Loads 0 Difficulty Rogue Special Mode None Game No. 2658 Rogue 2650 Adventurer 0 Explorer 8 Win Type - Total 242 Types 45/32/91/3/3/5/60/2/1 Lore% 98 Gallery% 98 Achievement% 100 Wizard Run 0 Options --------- ASCII 0 Keyboard 1 Movement Vi Keybinds 1 Fullscreen 1 Font 18/SmallcapsGlow Map View 76x50 Tactical HUD 1 Map Filters NONE Filters NONE Steam 1 RUN: ac202f91-bf38-4b64-b4df-5674f986b54c